bitfinex-derivatives/quotes_BTCF0:USTF0_20240907
["timestamp","ask_amount","ask_price","bid_price","bid_amount"]
[1725722592455,0.091345,54740.0,54739.0,0.091345]
[1725722592751,0.281345,54740.0,54739.0,0.091345]
[1725722595248,0.284345,54740.0,54739.0,0.091345]
[1725722595447,0.094345,54740.0,54739.0,0.091345]
[1725722596046,0.003,54740.0,54739.0,0.091345]
[1725722597142,0.094345,54740.0,54739.0,0.091345]
[1725722598750,0.093345,54740.0,54739.0,0.091345]
[1725722599552,0.093345,54740.0,54739.0,0.1461169]
[1725722599753,0.093345,54740.0,54739.0,0.091345]
[1725722600750,0.093345,54740.0,54739.0,0.1461169]
[1725722601146,0.093345,54740.0,54739.0,0.091345]
[1725722601750,0.093345,54740.0,54739.0,0.1461169]
[1725722602154,0.093345,54740.0,54739.0,0.091345]
[1725722602466,0.091347,54739.0,54735.0,0.05478455]
[1725722602651,0.329947,54739.0,54735.0,0.05478455]
[1725722603349,0.091353,54735.0,54734.0,0.05478455]
[1725722603545,0.281353,54735.0,54734.0,0.05478455]
[1725722603753,0.277353,54735.0,54734.0,0.05478455]
[1725722603949,0.091355,54734.0,54733.0,0.05478455]
[1725722604150,0.187055,54734.0,54733.0,0.05478455]
[1725722604552,0.187055,54734.0,54733.0,0.05478518]
[1725722604756,0.091357,54733.0,54732.0,0.091358]
[1725722604958,0.083357,54733.0,54732.0,0.091358]
[1725722605763,0.078357,54733.0,54732.0,0.091358]
[1725722606761,0.075357,54733.0,54732.0,0.091358]
[1725722607257,0.079357,54733.0,54732.0,0.091358]
[1725722607857,0.078357,54733.0,54732.0,0.091358]
[1725722614756,0.078357,54733.0,54732.0,0.1461304]
[1725722614958,0.078357,54733.0,54732.0,0.091358]
[1725722615257,0.006,54733.0,54732.0,0.091358]
[1725722615457,0.006,54733.0,54732.0,0.1643872]
[1725722616559,0.0499,54742.0,54732.0,0.829478]
[1725722616769,0.091341,54743.0,54728.0,0.105307]
[1725722616770,0.091341,54743.0,54742.0,0.091342]
[1725722616955,0.06245135,54745.0,54744.0,0.091338]
[1725722617763,0.19,54750.0,54744.0,0.091338]
[1725722618064,0.091336,54746.0,54745.0,0.091335]
[1725722618258,0.29598989,54750.0,54747.0,0.091332]
[1725722618453,0.29598989,54750.0,54738.0,0.2366]
[1725722618454,0.01465989,54750.0,54749.0,0.09133]
[1725722618761,0.0482,54752.0,54746.0,0.05474847]
[1725722619158,0.0482,54752.0,54751.0,0.091327]
[1725722620265,0.06228125,54752.0,54751.0,0.091327]
[1725722620466,0.01408125,54752.0,54751.0,0.091327]
[1725722620657,0.091318,54756.0,54748.0,0.19]
[1725722620857,0.008,54752.0,54751.0,0.092327]
[1725722621559,0.016,54752.0,54751.0,0.093327]
[1725722623865,0.107325,54752.0,54751.0,0.093327]
[1725722625368,0.016,54752.0,54751.0,0.093327]
[1725722635871,0.016,54752.0,54751.0,0.29780534]
[1725722636368,0.016,54752.0,54751.0,0.35255381]
[1725722636968,0.016,54752.0,54751.0,0.16255381]
[1725722637269,0.016,54752.0,54751.0,0.10780534]
[1725722638562,0.016,54752.0,54751.0,0.29780534]
[1725722639072,0.016,54752.0,54751.0,0.10780534]
[1725722639975,0.016,54752.0,54751.0,0.093327]
[1725722641776,0.0989,54762.0,54761.0,0.09131]
[1725722642778,0.190208,54762.0,54761.0,0.09131]
[1725722643075,0.0989,54762.0,54757.0,0.091316]
[1725722643267,0.091314,54759.0,54757.0,0.091316]
[1725722643675,0.091315,54758.0,54757.0,0.091316]
[1725722644366,0.090315,54758.0,54757.0,0.091316]
[1725722644886,0.089315,54758.0,54757.0,0.091316]
[1725722646565,0.09132,54755.0,54749.0,0.05460505]
[1725722646773,0.28132,54755.0,54749.0,0.05460505]
[1725722647078,0.28132,54755.0,54753.0,0.091322]
[1725722647274,0.003,54758.0,54748.0,0.05460505]
[1725722647476,0.003,54758.0,54755.0,0.09132]
[1725722647864,0.091318,54756.0,54755.0,0.09132]
[1725722648377,0.091322,54754.0,54753.0,0.05460505]
[1725722648575,0.091322,54754.0,54752.0,0.091324]
[1725722649077,0.091323,54753.0,54752.0,0.091324]
[1725722649377,0.091328,54750.0,54749.0,0.05460505]
[1725722649575,0.19,54750.0,54746.0,0.05473112]
[1725722649774,0.091335,54746.0,54745.0,0.091337]
[1725722650380,0.091335,54746.0,54742.0,0.091341]
[1725722650381,0.19,54746.0,54742.0,0.091341]
[1725722650682,0.09134,54743.0,54742.0,0.091341]
[1725722650878,0.19,54746.0,54741.0,0.05473592]
[1725722651079,0.091347,54739.0,54738.0,0.05473592]
[1725722651269,0.091347,54739.0,54735.0,0.05473592]
[1725722651270,0.19,54739.0,54735.0,0.05473592]
[1725722651474,0.0921,54742.0,54735.0,0.091353]
[1725722651673,0.0921,54742.0,54733.0,0.05473592]
[1725722651674,0.09135,54738.0,54736.0,0.091352]
[1725722652685,0.19,54739.0,54736.0,0.05473592]
[1725722652875,0.183442,54742.0,54736.0,0.05473592]
[1725722653074,0.0921,54742.0,54741.0,0.091343]
[1725722653384,0.002,54746.0,54739.0,0.05473592]
[1725722653569,0.281329,54750.0,54740.0,0.10443592]
[1725722653771,0.091331,54749.0,54744.0,0.091338]
[1725722653976,0.19,54747.0,54744.0,0.091338]
[1725722654175,0.19,54747.0,54745.0,0.091336]
[1725722655583,0.19,54747.0,54745.0,0.092336]
[1725722656878,0.281334,54747.0,54745.0,0.092336]
[1725722657183,0.286334,54747.0,54745.0,0.093336]
[1725722657680,0.091335,54746.0,54745.0,0.002]
[1725722658775,0.091335,54746.0,54745.0,0.001]
[1725722658974,0.091335,54746.0,54745.0,0.002]
[1725722659377,0.096335,54746.0,54745.0,0.002]
[1725722663481,0.005,54746.0,54745.0,0.093337]
[1725722664877,0.19,54750.0,54749.0,0.09133]
[1725722667293,0.192,54750.0,54749.0,0.09133]
[1725722671084,0.19,54750.0,54749.0,0.09133]
[1725722671293,0.192,54750.0,54749.0,0.09133]
[1725722671693,0.002,54750.0,54749.0,0.09133]
[1725722672200,0.002,54750.0,54749.0,0.28133]
[1725722672994,0.002,54750.0,54749.0,0.09133]
[1725722676493,0.002,54750.0,54749.0,0.14606592]
[1725722679299,0.002,54750.0,54749.0,0.09133]
[1725722680311,0.002,54750.0,54749.0,0.23735413]
[1725722680504,0.002,54750.0,54749.0,0.18266]
[1725722681704,0.002,54750.0,54749.0,0.09133]
[1725722684108,0.002,54750.0,54749.0,0.18266]
[1725722685309,0.19,54756.0,54755.0,0.09132]
[1725722686507,0.19,54756.0,54755.0,0.09232]
[1725722686912,0.281318,54756.0,54755.0,0.09232]
[1725722687520,0.286318,54756.0,54755.0,0.09332]
[1725722688321,0.005,54756.0,54755.0,0.09332]
[1725722689812,0.005,54756.0,54755.0,0.14800152]
[1725722690118,0.005,54756.0,54755.0,0.09332]
[1725722690313,0.005,54756.0,54755.0,0.23934128]
[1725722690514,0.005,54756.0,54755.0,0.19864174]
[1725722691016,0.005,54756.0,54755.0,0.38864174]
[1725722691223,0.005,54756.0,54755.0,0.19864174]
[1725722692809,0.005,54756.0,54755.0,0.27154798]
[1725722693313,0.091292,54772.0,54755.0,0.27154798]
[1725722693314,0.3265,54779.0,54777.0,0.091283]
[1725722693516,0.3265,54779.0,54767.0,0.0913]
[1725722693517,0.19,54780.0,54773.0,0.09129]
[1725722693720,0.19,54780.0,54768.0,0.0473]
[1725722693721,0.19,54774.0,54772.0,0.05468364]
[1725722694221,0.0458,54780.0,54772.0,0.05468364]
[1725722694422,0.2358,54780.0,54777.0,0.091282]
[1725722694720,0.0523,54779.0,54777.0,0.001]
[1725722695115,0.091283,54777.0,54773.0,0.09129]
[1725722695315,0.195,54774.0,54773.0,0.09129]
[1725722695512,0.194,54774.0,54773.0,0.09129]
[1725722696024,0.189,54774.0,54773.0,0.10554416]
[1725722696528,0.189,54774.0,54773.0,0.10654416]
[1725722697225,0.19,54777.0,54776.0,0.091284]
[1725722698614,0.19,54777.0,54776.0,0.092284]
[1725722699018,0.001,54777.0,54776.0,0.283285]
[1725722699416,0.001,54777.0,54776.0,0.10793733]
[1725722700431,0.001,54777.0,54776.0,0.093285]
[1725722702132,0.092283,54777.0,54776.0,0.093285]
[1725722702325,0.092283,54777.0,54776.0,0.002]
[1725722702832,0.183566,54777.0,54776.0,0.002]
[1725722703830,0.092283,54777.0,54776.0,0.002]
[1725722705330,0.093283,54777.0,54776.0,0.002]
[1725722705720,1.240963,54777.0,54776.0,0.002]
[1725722706123,1.332246,54777.0,54776.0,0.002]
[1725722706635,0.2813,54767.0,54766.0,0.091301]
[1725722706835,0.091307,54763.0,54762.0,0.1052757]
[1725722707032,0.281307,54763.0,54762.0,0.091308]
[1725722707428,0.73784,54763.0,54754.0,0.091321]
[1725722707629,0.19,54756.0,54754.0,0.091321]
[1725722707933,0.0928,54755.0,54754.0,0.091321]
[1725722708531,0.0898,54755.0,54754.0,0.091321]
[1725722708939,0.18112,54755.0,54754.0,0.091321]
[1725722710135,0.18512,54755.0,54754.0,0.091321]
[1725722710337,0.18912,54755.0,54754.0,0.091321]
[1725722711832,0.18912,54755.0,54747.0,0.19]
[1725722711833,0.0978,54755.0,54747.0,0.19]
[1725722712033,0.19,54751.0,54747.0,0.19]
[1725722712434,0.19,54751.0,54747.0,0.24468364]
[1725722712932,0.19,54751.0,54750.0,0.091328]
[1725722713629,0.281327,54751.0,54750.0,0.091328]
[1725722714029,0.281327,54751.0,54750.0,0.092328]
[1725722715732,0.372654,54751.0,54750.0,0.001]
[1725722716641,0.281327,54751.0,54750.0,0.001]
[1725722716847,0.091333,54747.0,54746.0,0.091335]
[1725722717042,0.281333,54747.0,54746.0,0.091335]
[1725722718047,0.281333,54747.0,54741.0,0.091343]
[1725722718048,0.091342,54742.0,54741.0,0.091343]
[1725722718236,0.092333,54747.0,54746.0,0.005]
[1725722720046,0.282333,54747.0,54746.0,0.005]
[1725722720346,0.001,54742.0,54741.0,0.011]
[1725722720553,0.191,54742.0,54741.0,0.011]
[1725722721051,0.281343,54742.0,54740.0,0.091344]
[1725722721352,0.0491,54741.0,54740.0,0.091344]
[1725722721851,0.0381,54741.0,54740.0,0.091344]
[1725722722554,0.0381,54741.0,54740.0,0.102344]
[1725722724153,0.0381,54741.0,54740.0,0.091344]
[1725722724447,0.0391,54741.0,54740.0,0.091344]
[1725722725237,0.001,54741.0,54740.0,0.091344]
[1725722726248,0.001,54741.0,54740.0,0.10577865]
[1725722726557,0.001,54741.0,54740.0,0.091344]
[1725722734458,0.001,54741.0,54740.0,0.14602764]
[1725722734846,0.001,54741.0,54740.0,0.091344]
[1725722736555,0.001,54741.0,54740.0,0.14602764]
[1725722737159,0.001,54741.0,54740.0,0.091344]
[1725722737661,0.001,54741.0,54740.0,0.182689]
[1725722737856,0.01397835,54749.0,54748.0,0.091332]
[1725722738158,0.51742,54755.0,54754.0,0.091322]
[1725722738359,0.51742,54755.0,54746.0,0.10119454]
[1725722738360,0.5165,54755.0,54746.0,0.10119454]
[1725722738556,0.19,54750.0,54749.0,0.09133]
[1725722740561,0.19,54750.0,54749.0,0.10568666]
[1725722741954,0.19,54750.0,54749.0,0.1603812]
[1725722742754,0.19,54750.0,54749.0,0.09133]
[1725722742959,0.19,54750.0,54749.0,0.14602454]
[1725722743158,0.19,54750.0,54749.0,0.09133]
[1725722743664,0.281328,54750.0,54749.0,0.09133]
[1725722743854,0.091333,54747.0,54746.0,0.05469454]
[1725722744050,0.091333,54747.0,54745.0,0.091336]
[1725722744051,0.091335,54746.0,54745.0,0.05469454]
[1725722744256,0.091338,54744.0,54743.0,0.14603354]
[1725722744457,0.281338,54744.0,54743.0,0.14603354]
[1725722745663,0.281338,54744.0,54743.0,0.091339]
[1725722745865,0.282338,54744.0,54743.0,0.091339]
[1725722751668,0.001,54744.0,54743.0,0.091339]
[1725722751864,0.001,54744.0,54743.0,0.137039]
[1725722752175,0.001,54744.0,54743.0,0.45868918]
[1725722753468,0.001,54744.0,54743.0,0.22829301]
[1725722753666,0.001,54744.0,54743.0,0.137039]
[1725722757763,0.046,54755.0,54743.0,1.28495401]
[1725722757965,0.32742,54758.0,54757.0,0.091317]
[1725722758164,0.19,54762.0,54761.0,0.09131]
[1725722759577,0.204,54762.0,54761.0,0.09131]
[1725722759763,0.295308,54762.0,54761.0,0.09131]
[1725722762074,0.281308,54762.0,54761.0,0.09131]
[1725722762279,0.283308,54762.0,54761.0,0.09131]
[1725722762672,0.281308,54762.0,54761.0,0.09131]
[1725722762873,0.285308,54762.0,54761.0,0.09131]
[1725722763070,0.004,54762.0,54761.0,0.09131]
[1725722763581,0.004,54762.0,54761.0,0.1460582]
[1725722763769,0.004,54762.0,54761.0,0.09131]
[1725722765076,0.001,54762.0,54761.0,1.23915]
[1725722765473,0.0140033,54769.0,54761.0,1.23915]
[1725722765676,0.19,54770.0,54763.0,0.05460308]
[1725722766280,0.19,54773.0,54762.0,0.24460308]
[1725722766481,0.0965,54774.0,54773.0,0.09129]
[1725722767178,0.0497,54774.0,54773.0,0.09129]
[1725722767383,0.19,54782.0,54781.0,0.091277]
[1725722767775,0.0988,54785.0,54783.0,0.091272]
[1725722768370,0.0497,54785.0,54784.0,0.091272]
[1725722768574,0.3265,54798.0,54793.0,0.091256]
[1725722768575,0.281254,54795.0,54793.0,0.091256]
[1725722768978,0.091255,54794.0,54788.0,0.091265]
[1725722769179,0.19,54789.0,54788.0,0.091265]
[1725722770869,0.281258,54792.0,54790.0,0.091261]
[1725722771070,0.19,54792.0,54791.0,0.09126]
[1725722771484,0.014,54795.0,54793.0,0.091256]
[1725722772076,0.19,54796.0,54793.0,0.091256]
[1725722772476,0.19,54796.0,54795.0,0.091253]
[1725722772678,0.189652,54797.0,54796.0,0.091252]
[1725722772679,0.0984,54797.0,54796.0,0.091252]
[1725722772874,0.091243,54801.0,54798.0,0.091248]
[1725722774171,0.0140751,54802.0,54798.0,0.19]
[1725722774372,0.61939319,54814.0,54799.0,0.54744]
[1725722774373,0.00092,54814.0,54799.0,0.54744]
[1725722774686,0.19,54827.0,54813.0,0.19]
[1725722774981,0.19,54827.0,54810.0,0.091227]
[1725722774982,0.19,54827.0,54817.0,0.19]
[1725722775187,0.0941,54830.0,54829.0,0.091197]
[1725722775372,0.20402357,54834.0,54830.0,0.091194]
[1725722775573,0.19,54831.0,54816.0,0.2366]
[1725722775790,0.091189,54834.0,54816.0,0.2366]
[1725722775983,0.005,54827.0,54816.0,0.2366]
[1725722776385,0.19,54820.0,54814.0,0.0487]
[1725722776583,0.189,54820.0,54814.0,0.0487]
[1725722776891,0.189,54820.0,54806.0,0.0466]
[1725722776892,0.19,54817.0,54806.0,0.0466]
[1725722777185,0.091207,54823.0,54814.0,0.09122]
[1725722777383,0.19,54822.0,54815.0,0.091219]
[1725722777682,0.19,54822.0,54808.0,0.19]
[1725722777887,0.19,54822.0,54812.0,0.19]
[1725722778090,0.19,54822.0,54816.0,0.091218]
[1725722778274,0.19,54818.0,54816.0,0.091218]
[1725722778478,0.19,54822.0,54816.0,0.091218]
[1725722778880,0.19,54822.0,54816.0,0.099218]
[1725722779085,0.19,54822.0,54816.0,0.008]
[1725722779279,0.091212,54820.0,54816.0,0.008]
[1725722779484,0.002,54818.0,54811.0,0.19]
[1725722779987,0.14436814,54815.0,54810.0,0.091228]
[1725722780287,0.08048414,54815.0,54810.0,0.091228]
[1725722780890,0.08048414,54815.0,54811.0,0.007]
[1725722781393,0.091224,54813.0,54811.0,0.007]
[1725722781777,0.0452,54814.0,54811.0,0.007]
[1725722781778,0.137425,54812.0,54811.0,0.007]
[1725722782180,0.59352,54812.0,54799.0,0.19]
[1725722782386,0.19,54800.0,54790.0,0.091261]
[1725722782594,0.19,54791.0,54783.0,0.05460308]
[1725722782788,0.19,54791.0,54785.0,0.091269]
[1725722782994,0.19,54788.0,54785.0,0.091269]
[1725722783291,0.19,54788.0,54786.0,0.091268]
[1725722783682,0.19,54787.0,54784.0,0.19]
[1725722783879,0.19,54787.0,54784.0,0.281271]
[1725722784484,0.19,54787.0,54786.0,0.091268]
[1725722784684,0.0462,54792.0,54784.0,0.19]
[1725722784685,0.19,54790.0,54784.0,0.19]
[1725722784881,0.19,54787.0,54785.0,0.09127]
[1725722786292,0.19,54787.0,54786.0,0.091268]
[1725722786481,0.19,54790.0,54786.0,0.091268]
[1725722786687,0.002,54787.0,54786.0,0.091268]
[1725722786888,0.002,54787.0,54784.0,0.19]
[1725722787407,0.002,54787.0,54785.0,0.09127]
[1725722788494,0.281263,54790.0,54785.0,0.09127]
[1725722788885,0.19,54798.0,54786.0,0.19]
[1725722789200,0.091252,54796.0,54791.0,0.09126]
[1725722790097,0.19,54794.0,54791.0,0.09126]
[1725722790685,0.091254,54795.0,54792.0,0.091258]
[1725722791691,0.091254,54795.0,54786.0,0.24460308]
[1725722792087,0.091255,54794.0,54787.0,0.05460308]
[1725722792294,0.098255,54794.0,54792.0,0.091258]
[1725722792489,0.098255,54794.0,54793.0,0.091257]
[1725722792490,0.007,54794.0,54793.0,0.091257]
[1725722792691,0.048,54807.0,54791.0,0.24460308]
[1725722792991,0.091224,54813.0,54801.0,0.19]
[1725722793192,0.091225,54812.0,54809.0,0.09123]
[1725722793697,0.09123,54809.0,54805.0,0.091237]
[1725722793998,0.0454,54814.0,54805.0,0.091237]
[1725722793999,0.002,54807.0,54805.0,0.091237]
[1725722794198,0.002,54807.0,54805.0,0.14584008]
[1725722794593,0.002,54807.0,54806.0,0.19]
[1725722795204,0.002,54807.0,54806.0,0.33583808]
[1725722795407,0.091225,54812.0,54808.0,0.091232]
[1725722795709,0.091219,54816.0,54811.0,0.091226]
[1725722795902,0.09122,54815.0,54811.0,0.091226]
[1725722796300,0.19,54818.0,54811.0,0.091226]
[1725722796700,0.19,54818.0,54807.0,0.0730087]
[1725722796701,0.091222,54814.0,54812.0,0.091224]
[1725722797405,0.091225,54812.0,54811.0,0.05460308]
[1725722798200,0.091225,54812.0,54808.0,0.1642397]
[1725722798201,0.091229,54810.0,54809.0,0.0730087]
[1725722798499,0.090229,54810.0,54809.0,0.0730087]
[1725722798705,0.090229,54810.0,54808.0,0.091231]
[1725722799805,0.003,54810.0,54805.0,0.09125401]
[1725722799995,0.091235,54806.0,54803.0,0.18249301]
[1725722800396,0.091235,54806.0,54803.0,0.091239]
[1725722800710,0.091235,54806.0,54804.0,0.091238]
[1725722801211,0.003,54810.0,54806.0,0.091235]
[1725722801508,0.094228,54810.0,54807.0,0.091233]
[1725722801705,0.097228,54810.0,54806.0,0.19]
[1725722801910,0.006,54810.0,54809.0,0.09123]
[1725722802101,0.006,54810.0,54809.0,0.18248401]
[1725722802303,0.006,54810.0,54809.0,0.32149427]
[1725722802698,0.091228,54810.0,54809.0,0.09125401]
[1725722802908,0.091233,54807.0,54806.0,0.09125401]
[1725722803100,0.091235,54806.0,54805.0,0.09125401]
[1725722803299,0.19,54814.0,54807.0,0.091233]
[1725722803507,0.281222,54814.0,54813.0,0.05440196]
[1725722803707,0.091223,54813.0,54812.0,0.05440196]
[1725722804010,0.091228,54810.0,54809.0,0.07253595]
[1725722804323,0.091228,54810.0,54809.0,0.07254199]
[1725722804506,0.19,54818.0,54810.0,0.091227]
[1725722804707,0.091217,54817.0,54816.0,0.05440347]
[1725722805004,0.091218,54816.0,54815.0,0.05440347]
[1725722805206,0.001,54833.0,54814.0,0.07255254]
[1725722805402,0.095,54832.0,54822.0,0.19]
[1725722805606,0.140393,54832.0,54830.0,0.05440385]
[1725722805805,0.091197,54829.0,54828.0,0.07253847]
[1725722806016,0.091197,54829.0,54827.0,0.07253177]
[1725722806310,0.091197,54829.0,54825.0,0.09125401]
[1725722806501,0.091199,54828.0,54823.0,0.28125401]
[1725722806906,0.091199,54828.0,54824.0,0.23022307]
[1725722807111,0.19,54828.0,54823.0,0.09125401]
[1725722807314,0.19,54827.0,54825.0,0.0725204]
[1725722807512,0.091202,54826.0,54824.0,0.0725204]
[1725722808006,0.688004,54825.0,54824.0,0.05439725]
[1725722808208,0.688004,54825.0,54823.0,0.05439725]
[1725722808407,0.281206,54824.0,54822.0,0.05439725]
[1725722808711,0.281206,54824.0,54818.0,0.0725204]
[1725722808712,0.091207,54823.0,54821.0,0.05439725]
[1725722808908,0.690207,54823.0,54821.0,0.05439725]
[1725722809113,0.54724,54822.0,54820.0,0.05439725]
[1725722809320,0.091209,54822.0,54821.0,0.05439725]
[1725722809515,0.281209,54822.0,54820.0,0.05439725]
[1725722810015,0.09121,54821.0,54820.0,0.05439725]
[1725722810206,0.09121,54821.0,54818.0,0.05439725]
[1725722810407,0.09121,54821.0,54817.0,0.05439725]
[1725722811006,0.09021,54821.0,54817.0,0.05439725]
[1725722811209,0.19,54818.0,54817.0,0.05439725]
[1725722811622,0.090217,54817.0,54816.0,0.05439725]
[1725722812223,0.089217,54817.0,54813.0,0.1637434]
[1725722812423,0.089217,54817.0,54816.0,0.05440965]
[1725722813015,0.095217,54817.0,54816.0,0.05540965]
[1725722813220,0.095217,54817.0,54816.0,0.001]
[1725722813522,0.095217,54817.0,54816.0,0.05541145]
[1725722814418,0.089217,54817.0,54815.0,0.05441145]
[1725722814623,0.095217,54817.0,54816.0,0.001]
[1725722815007,0.095217,54817.0,54814.0,0.05441145]
[1725722815213,0.096217,54817.0,54816.0,0.001]
[1725722815718,0.007,54817.0,54816.0,0.001]
[1725722816118,0.091212,54820.0,54815.0,0.14563145]
[1725722816416,0.005,54817.0,54815.0,0.09122]
[1725722816620,0.096217,54817.0,54814.0,0.05441145]
[1725722816813,0.096217,54817.0,54813.0,0.05441145]
[1725722817219,0.096217,54817.0,54816.0,0.05441145]
[1725722817421,0.096217,54817.0,54816.0,0.05446209]
[1725722817725,0.091217,54817.0,54816.0,0.05446209]
[1725722817933,0.098217,54817.0,54816.0,0.05546209]
[1725722818723,1.245497,54817.0,54816.0,0.001]
[1725722819022,0.091228,54810.0,54809.0,0.05446209]
[1725722819226,0.091232,54808.0,54806.0,0.0725204]
[1725722819425,0.049,54807.0,54806.0,0.0725204]
[1725722819621,0.049,54807.0,54805.0,0.0725204]
[1725722819622,0.140233,54807.0,54805.0,0.0725204]
[1725722819824,0.2369,54806.0,54805.0,0.0725204]
[1725722820218,0.2369,54806.0,54804.0,0.091238]
[1725722820625,0.2369,54806.0,54802.0,0.19]
[1725722820929,0.2369,54806.0,54800.0,0.07272072]
[1725722820930,0.091243,54801.0,54800.0,0.07272072]
[1725722821126,0.19,54801.0,54799.0,0.16396672]
[1725722821326,0.19,54801.0,54797.0,0.07272072]
[1725722821538,0.183,54801.0,54800.0,0.05456715]
[1725722821721,0.183,54801.0,54797.0,0.07272072]
[1725722822137,0.184,54801.0,54800.0,0.06356693]
[1725722822522,0.275243,54801.0,54800.0,0.009]
[1725722823826,0.822683,54801.0,54800.0,0.009]
[1725722824030,1.422683,54801.0,54800.0,0.009]
[1725722824538,1.513926,54801.0,54800.0,0.009]
[1725722825734,0.091259,54792.0,54787.0,0.091266]
[1725722825934,0.19,54790.0,54787.0,0.091266]
[1725722826236,0.091267,54787.0,54786.0,0.19]
[1725722826441,0.09127,54786.0,54781.0,0.09956693]
[1725722826638,0.09127,54786.0,54781.0,0.045]
[1725722826841,0.09127,54785.0,54782.0,0.281274]
[1725722827036,0.09127,54785.0,54782.0,0.19]
[1725722827230,0.19,54783.0,54782.0,0.19]
[1725722827639,0.19,54783.0,54781.0,0.045]
[1725722827840,0.19,54786.0,54783.0,0.091272]
[1725722828530,0.281268,54786.0,54783.0,0.091272]
[1725722829144,0.091274,54783.0,54779.0,0.09128]
[1725722829351,0.19,54782.0,54779.0,0.09128]
[1725722830142,0.091277,54781.0,54773.0,0.0486]
[1725722831044,0.091277,54781.0,54774.0,0.19]
[1725722831246,0.091278,54780.0,54778.0,0.09128]
[1725722831548,0.09128,54779.0,54778.0,0.09128]
[1725722831751,0.091282,54778.0,54776.0,0.091284]
[1725722832056,0.091282,54778.0,54777.0,0.091283]
[1725722832057,0.19,54778.0,54777.0,0.091283]
[1725722832241,0.001,54781.0,54779.0,0.09128]
[1725722832443,0.001,54781.0,54780.0,0.091278]
[1725722832745,0.19,54781.0,54780.0,0.091278]
[1725722834841,0.191,54781.0,54780.0,0.091278]
[1725722837260,0.282277,54781.0,54780.0,0.091278]
[1725722837747,0.282277,54781.0,54774.0,0.19]
[1725722837748,0.191,54781.0,54775.0,0.091286]
[1725722838051,0.091284,54777.0,54773.0,0.0486]
[1725722838255,0.091284,54777.0,54773.0,0.139889]
[1725722838555,0.09129,54773.0,54772.0,0.091292]
[1725722838939,0.091292,54772.0,54769.0,0.091295]
[1725722839248,0.19,54774.0,54765.0,0.19]
[1725722839653,0.091287,54775.0,54771.0,0.091292]
[1725722839857,0.006,54773.0,54771.0,0.091292]
[1725722840155,0.006,54773.0,54772.0,0.091292]
[1725722840549,0.0489,54776.0,54774.0,0.091287]
[1725722840743,0.0489,54776.0,54765.0,0.471303]
[1725722840744,0.281284,54777.0,54765.0,0.472823]
[1725722840949,0.281284,54777.0,54765.0,0.471303]
[1725722841150,0.281277,54781.0,54766.0,0.05456693]
[1725722841357,0.281277,54781.0,54779.0,0.091278]
[1725722841743,0.19,54781.0,54780.0,0.091278]
[1725722841946,0.2398,54784.0,54773.0,0.19]
[1725722842347,0.0498,54784.0,54783.0,0.091273]
[1725722842646,0.091265,54788.0,54785.0,0.09127]
[1725722842846,0.19,54786.0,54781.0,0.091276]
[1725722843149,0.19,54786.0,54773.0,0.19]
[1725722843150,0.091273,54784.0,54783.0,0.091273]
[1725722843355,0.098273,54784.0,54783.0,0.091273]
[1725722843652,0.007,54784.0,54783.0,0.091273]
[1725722844556,0.007,54784.0,54783.0,0.14583993]
[1725722844856,0.091263,54790.0,54782.0,0.20076693]
[1725722845055,0.014,54788.0,54782.0,0.20076693]
[1725722845253,0.014,54788.0,54787.0,0.091267]
[1725722845452,0.091263,54790.0,54788.0,0.091264]
[1725722846356,0.281257,54793.0,54789.0,0.091263]
[1725722846945,0.003,54790.0,54789.0,0.091263]
[1725722848056,0.284262,54790.0,54786.0,0.091268]
[1725722848249,0.284262,54790.0,54788.0,0.091265]
[1725722849050,0.281262,54790.0,54788.0,0.091265]
[1725722849550,0.091265,54788.0,54787.0,0.05456693]
[1725722849755,0.091265,54788.0,54786.0,0.05456693]
[1725722849961,0.091265,54788.0,54786.0,0.14583493]
[1725722851257,0.093265,54788.0,54786.0,0.14583493]
[1725722852163,0.093265,54788.0,54787.0,0.05456693]
[1725722853262,0.093265,54788.0,54787.0,0.04256693]
[1725722853263,0.091265,54788.0,54787.0,0.04256693]
[1725722854066,0.19,54790.0,54785.0,0.07272072]
[1725722854262,0.091258,54792.0,54790.0,0.09126]
[1725722854961,0.091258,54792.0,54786.0,0.07272072]
[1725722855156,0.19,54793.0,54792.0,0.091258]
[1725722855359,0.20461201,54793.0,54792.0,0.091258]
[1725722855560,0.045,54798.0,54797.0,0.09125]
[1725722855755,0.0493,54800.0,54799.0,0.091247]
[1725722856065,0.0493,54800.0,54790.0,0.091261]
[1725722856066,0.10541257,54802.0,54800.0,0.091244]
[1725722856370,0.091243,54802.0,54800.0,0.091244]
[1725722857365,0.091243,54802.0,54796.0,0.07284667]
[1725722857769,0.20462347,54804.0,54802.0,0.091241]
[1725722858958,0.29586347,54804.0,54802.0,0.091241]
[1725722859368,0.09124,54803.0,54802.0,0.091241]
[1725722859570,0.09124,54803.0,54795.0,0.12184667]
[1725722859866,0.19,54797.0,54796.0,0.091252]
[1725722860272,0.19,54797.0,54794.0,0.07284667]
[1725722860457,0.19,54797.0,54790.0,0.07276864]
[1725722860664,0.19,54791.0,54788.0,0.11836864]
[1725722860869,0.19,54791.0,54788.0,0.0456]